Cogmind - Beta 15 @@@ ROGUE MODE // 2025.10.12 @ 07:37:23 Player: Jordan Result: Destroyed by as-97240 with Assembled Heavy Rifle Performance ------------- Evolutions (0) 0 Regions Visited (2) 400 Robots Destroyed (20) 100 Value Destroyed (416) 416 Prototype IDs (3) 60 Alien Tech Used (0) 0 Bonus (0) 0 TOTAL SCORE: 976 Bonus ------- None Cogmind --------- Core Integrity 0/250 Matter 290/300 Energy 99/100 System Corruption 1% Temperature Hot (200) Movement Core (350) Ox6 Location -10/Mines Parts ------- > --- POWER (1) -------- (None) > --- PROPULSION (2) --- (None) > --- UTILITY (2) ------ Large Storage Unit Signal Interpreter > --- WEAPON (2) ------- (None) > --- INVENTORY (15) --- Light Treads Light Treads Light Treads Heat Sink Large Storage Unit Large Storage Unit Small Battery (100) High-capacity Battery (250) Weight Redist. System Seismic Detector Hardened Light Armor Plating Particle Cannon Peak State ------------ > --- POWER ------------ Ion Engine > --- PROPULSION ------- Light Treads Light Treads > --- UTILITY ---------- Improved Heat Sink Hardened Light Armor Plating > --- WEAPON ----------- Particle Cannon Particle Cannon > --- INVENTORY -------- Small Battery EM Pulse Gun Particle Cannon Particle Cannon [Rating: 12] Favorites ----------- Power Light Ion Engine Engine Light Ion Engine Propulsion Light Treads Treads Light Treads Flight Unit Flight Unit Utility Signal Interpreter Device Improved Heat Sink Storage Large Storage Unit Processor Signal Interpreter Protection Hardened Light Armor Plating Weapon Particle Cannon Energy Gun Small Laser Energy Cannon Particle Cannon Ballistic Gun Heavy Assault Rifle Build | -11 -10 -10 ------- Run | Yrd Mat Min Slots Evolved . | . . . Power . | . . . Propulsion . | . . . Utility . | . . . Weapon . | . . . Parts Attached 21 | 5 15 1 Power 3 | 1 2 . Engine 3 | 1 2 . Core . | . . . Reactor . | . . . Propulsion 4 | 2 2 . Treads 2 | 2 . . Leg . | . . . Wheel . | . . . Hover . | . . . Flight 2 | . 2 . Utility 7 | . 7 . Device 2 | . 2 . Storage 3 | . 3 . Processor 1 | . 1 . Hackware . | . . . Protection 1 | . 1 . Artifact . | . . . Weapon 7 | 2 4 1 Energy Gun 3 | 2 1 . Energy Cannon 3 | . 3 . Ballistic Gun 1 | . . 1 Ballistic Cannon . | . . . Launcher . | . . . Special Weapon . | . . . Impact Weapon . | . . . Slashing Weapon . | . . . Piercing Weapon . | . . . Special Melee Weapon . | . . . Unidentified Prototypes . | . . . Parts Lost 6 | . . 6 Power 1 | . . 1 Propulsion 2 | . . 2 Utility . | . . . Weapon 3 | . . 3 Highest Loss Streak 6 | . . 6 To Critical Strikes . | . . . Average Backups 8 | . 8 12 Power . | . . . Propulsion 2 | . 2 3 Utility 4 | . 4 8 Weapon 1 | . 1 1 Tool/Special . | . . . Unused Backups 16 | . 6 10 Power . | . . . Propulsion 6 | . 3 3 Utility 8 | . 2 6 Weapon 2 | . 1 1 Tool/Special . | . . . Average Slot Usage (%) 95 | . 96 82 Engine 13 | . 13 8 Treads 26 | . 27 19 Device 4 | . 4 . Storage 11 | . 11 14 Processor 8 | . 8 14 Protection 1 | . 1 . Energy Gun 4 | . 4 . Energy Cannon 22 | . 22 19 Peak Build Rating 12 | 5 12 10 Average Rating 9 | 4 9 8 On Entrance 5 | . 5 10 Naked Turns . | . . . Heaviest Build 31 | 7 31 31 Greatest Support 40 | 40 40 40 Greatest Overweight (x) 6 | 1 2 6 Average Overweight (x) . | . . . Largest Inventory Capacity 15 | 5 15 15 Average Capacity 10 | 5 10 15 Most Carried 13 | 2 13 12 Average Carried 8 | . 8 12 Final Capacity 15 | 5 15 15 Final Carried 12 | 2 12 12 Class Distribution -------------------- 100% | Mutant Dominant Class ---------------- Mutant | -10/Materials Mutant | -10/Mines Resources | -11 -10 -10 ----------- Run | Yrd Mat Min Matter Collected 491 | 149 332 10 Remotely . | . . . Salvage Created 711 | . 556 155 Parts 44 | . 35 9 Haulers Intercepted 1 | . 1 . Recyclers Shooed 2 | . 2 . Parts Field Recycled . | . . . Retrieved Matter . | . . . Parts Self-Destructed . | . . . Prevented . | . . . Kills | -11 -10 -10 ------- Run | Yrd Mat Min Combat Hostiles Destroyed 16 | . 11 5 Guns 6 | . 6 . Cannons 7 | . 2 5 AOE 2 | . 2 . Classes Destroyed 8 | . 6 2 Worker 1 | . 1 . Hauler 1 | . 1 . Recycler 2 | . 2 . Watcher 3 | . 3 . Swarmer 6 | . 6 . Grunt 5 | . 5 . Sentry 2 | . . 2 Assembled 3 | . . 3 Best Kill Streak 5 | . 5 5 Combat Bots Only 5 | . 5 5 Max Kills in Single Turn 2 | . 2 1 Gunslinging 1 | . 1 . Exploded 2 | . 2 . Melee . | . . . Uniques/NPCs Destroyed . | . . . Combat | -11 -10 -10 -------- Run | Yrd Mat Min Hostile Shots Fired 140 | . 58 82 Missed 38 | . 17 21 Hits 102 | . 41 61 Projectile 102 | . 41 61 Critical Strikes 3 | . 2 1 Damage Taken 1258 | . 422 836 Core 260 | . 67 193 Absorbed by Shields . | . . . Regen/Repaired (Parts) 175 | . 175 . Core Remaining (%) 100 | 100 . . Volleys Fired 70 | . 61 9 Largest 2 | . 2 2 Hottest 136 | . 136 136 Shots Fired 134 | . 118 16 Gun 43 | . 38 5 Cannon 91 | . 80 11 Launcher . | . . . Special . | . . . Kinetic 5 | . . 5 Thermal 109 | . 98 11 Explosive . | . . . Electromagnetic 20 | . 20 . Robot Hit Streak 7 | . 7 7 Robot Miss Streak 6 | . 6 2 Penetration Max . | . . . Secondary Targets 2 | . 2 . Max Gunslinging Chain 1 | . 1 . Shots Hit Robots 65 | . 58 7 Core Hits 29 | . 23 6 Critical Kills 1 | . 1 . Critical Parts Destroyed . | . . . Critical Strikes 1 | . 1 . Meltdown 1 | . 1 . Melee Attacks . | . . . Impact . | . . . Slashing . | . . . Piercing . | . . . Sneak Attacks . | . . . Combat Hostiles . | . . . Follow-up Attacks . | . . . Damage Inflicted 1286 | . 1139 147 Guns 325 | . 300 25 Cannons 862 | . 740 122 Explosions 99 | . 99 . Melee . | . . . Ramming . | . . . Kinetic 25 | . . 25 Thermal 1103 | . 981 122 Explosive . | . . . Electromagnetic 158 | . 158 . Impact . | . . . Slashing . | . . . Piercing . | . . . Highest Corruption 1 | . 1 1 Average Corruption 1 | . 1 1 Corruption Purged . | . . . Corruption Blocked . | . . . Effects 2 | . 2 . Message Errors 1 | . 1 . Misfires 1 | . 1 . Overload Shots . | . . . Overflow Damage 12 | . 12 . Projectiles 12 | . 12 . Explosions . | . . . Melee . | . . . Knockbacks . | . . . Impact . | . . . Kinetic . | . . . Secondary . | . . . Self-Inflicted Damage . | . . . Shots . | . . . Rammed . | . . . Targets Rammed . | . . . Kicked . | . . . Crushed . | . . . Highest Temperature 571 | . 571 280 Average Temperature 128 | . 121 189 Received Heat Transfer 209 | . 171 38 Effects 9 | . 8 1 Shutdowns 2 | . 2 . Energy Bleed 3 | . 3 . Interference 2 | . 1 1 Matter Decay 1 | . 1 . Short Circuit 1 | . 1 . Siege Activations . | . . . Martial Activations . | . . . Shielding Activations . | . . . Robots Disrupted . | . . . Combat Hostiles . | . . . Robots Corrupted . | . . . Combat Hostiles . | . . . Parts Fried 1 | . 1 . Impact Corruptions . | . . . Robots Melted 1 | . 1 . Combat Hostiles 1 | . 1 . Parts Melted 5 | . 5 . Heat Transferred 1979 | . 1757 222 Parts Sabotaged . | . . . Parts Stolen . | . . . Parts Stripped . | . . . Power Chain Reactions 1 | . 1 . Alert | -11 -10 -10 ------- Run | Yrd Mat Min Maximum Alert Level . | . . . Low Security (%) 100 | 100 100 100 Level 1 . | . . . Level 2 . | . . . Level 3 . | . . . Level 4 . | . . . Level 5 . | . . . High Security . | . . . Max Security . | . . . Peak Influence 143 | . 143 40 Initial . | . . . Average 28 | . 30 12 Influence Increases 420 | . 380 40 Destroy 0b10 Robot/C 260 | . 220 40 Destroy 0b10 Robot/NC 35 | . 35 . Destroy Leader 58 | . 58 . Successful Hack 30 | . 30 . Disable Machine 30 | . 30 . Destroy Structure 7 | . 7 . Influence Decreases 420 | . 379 41 Entered New Map 1 | . . 1 Time Decay 389 | . 379 10 Lost Part 30 | . . 30 Squads Dispatched 2 | . 2 . Investigation 1 | . 1 . Extermination . | . . . Reinforcement 1 | . 1 . Assault . | . . . Garrison . | . . . Intercept . | . . . Searches Triggered . | . . . Construction Impeded . | . . . Haulers Reinforced . | . . . Active Scanning Responses . | . . . Cargo Convoy Interrupts . | . . . Stealth | -11 -10 -10 --------- Run | Yrd Mat Min Distress Signals 1 | . 1 . Communications Jammed . | . . . Distress Signals . | . . . Times Spotted 43 | . 20 23 Peak Tracking Total 21 | . 5 21 Tactical Retreats 1 | . . 1 Traps | -11 -10 -10 ------- Run | Yrd Mat Min Traps Triggered 2 | . 2 . Indirectly . | . . . Trap Hack Attempts . | . . . Triggered . | . . . Disarmed . | . . . Reprogrammed . | . . . Reused . | . . . Traps Extracted . | . . . Installed . | . . . Triggered . | . . . Machines | -11 -10 -10 ---------- Run | Yrd Mat Min Machines Disabled 2 | . 2 . Max in Single Turn 1 | . 1 . Machines Repaired . | . . . Machines Dismantled . | . . . Machines Sabotaged . | . . . Overloaded Fab Kills . | . . . Hacking | -11 -10 -10 --------- Run | Yrd Mat Min Machines Accessed 7 | . 7 . Terminals 6 | . 6 . Fabricators . | . . . Repair Stations 1 | . 1 . Recycling Units . | . . . Scanalyzers . | . . . Garrison Access . | . . . Total Hacks 21 | . 21 . Successful 10 | . 10 . Failed 11 | . 11 . Catastrophic 2 | . 2 . Database Lockouts . | . . . Manual . | . . . Terminals 16 | . 16 . Fabricators . | . . . Repair Stations 5 | . 5 . Recycling Units . | . . . Scanalyzers . | . . . Garrison Access . | . . . Terminal Hacks 6 | . 6 . Record 2 | . 2 . Prototype ID Bank 1 | . 1 . Dispatch Records 1 | . 1 . Registered Components 1 | . 1 . Zone Layout 1 | . 1 . Fabricator Hacks . | . . . Repair Station Hacks 4 | . 4 . Scan Component 2 | . 2 . Repair 2 | . 2 . Recycling Unit Hacks . | . . . Scanalyzer . | . . . Garrison Access Hacks . | . . . Unauthorized Hacks . | . . . Terminals . | . . . Fabricators . | . . . Repair Stations . | . . . Recycling Units . | . . . Scanalyzers . | . . . Garrison Access . | . . . Data Cores Recovered . | . . . Used . | . . . Hacking Detections 6 | . 6 . Full Trace Events 1 | . 1 . Feedback Events . | . . . Feedback Blocked . | . . . Robot Schematics Acquired . | . . . Robots Built . | . . . Authchips . | . . . Time . | . . . Total Robot Build Rating . | . . . Part Schematics Acquired . | . . . Parts Built . | . . . Authchips . | . . . Time . | . . . Total Part Build Rating . | . . . Parts Repaired 2 | . 2 . Time 52 | . 52 . Parts Recycled . | . . . Recycled Matter . | . . . Retrieved Matter . | . . . Retrieved Components . | . . . Parts Scanalyzed . | . . . Part Schematics Acquired . | . . . Parts Damaged . | . . . Bothacking | -11 -10 -10 ------------ Run | Yrd Mat Min Used RIF Installer . | . . . Robots Hacked . | . . . Non-combat . | . . . Combat . | . . . Robot Hacks Applied . | . . . Relay Couplers Released . | . . . Fabnet Peak Effective % . | . . . Robots Rewired . | . . . Allies Hacked . | . . . Hacks Repelled . | . . . Allies | -11 -10 -10 -------- Run | Yrd Mat Min Total Allies . | . . . Largest Group . | . . . Highest-Rated Group . | . . . Highest-Rated Ally . | . . . Total Orders . | . . . Ally Attacks . | . . . Total Damage . | . . . Kills . | . . . Allies Corrupted . | . . . Allies Melted . | . . . Intel | -11 -10 -10 ------- Run | Yrd Mat Min Active Infowar (turns) . | . . . Robot Analysis Total . | . . . Derelict Logs Recovered . | . . . Drone Launches . | . . . Drone Recoveries . | . . . Exploration | -11 -10 -10 ------------- Run | Yrd Mat Min Turns Passed 1803 | 74 1690 39 Spaces Moved 915 | 43 864 8 Core 5 | 4 . 1 Treads 878 | 39 832 7 Legs . | . . . Wheels . | . . . Hover . | . . . Flight 32 | . 32 . Fastest Speed 37 | 50 37 160 Average Speed 156 | 152 155 193 Slowest Speed 350 | 160 220 350 Overloaded Moves . | . . . Propulsion Burnouts . | . . . Robots Hopped . | . . . Potential Cave-ins . | . . . Cave-ins Triggered . | . . . Exploration Rate (%) 37 | 4 99 8 Regions Visited 2 Branch Regions 1 Pre-discovered Areas . | . . . Known Exits Taken 1 | . 1 . Unknown Exits Taken 1 | 1 . . Scrap Searched . | . . . Spaces Dug . | . . . Terrain Destroyed 6 | . 6 . Melee . | . . . Projectile . | . . . AOE 6 | . 6 . Terrain Rammed . | . . . Walls Destroyed . | . . . Machines Disabled . | . . . Actions | -11 -10 -10 --------- Run | Yrd Mat Min Total 1166 | 49 1099 18 Wait 97 | . 97 . Move 913 | 42 863 8 Hop . | . . . Pick Up 27 | 2 25 . Fast Attach 21 | 5 15 1 Attach 6 | . 6 . Detach 9 | . 9 . Swap . | . . . Drop 23 | . 23 . Fire 70 | . 61 9 Melee . | . . . Ram . | . . . Kick . | . . . Crush . | . . . Escape Stasis . | . . . Rewire . | . . . Trap . | . . . Miscellaneous . | . . . Route ------- -11/Scrapyard -10/Materials (discovered 5 exits: *Mat x3 / *Min x2) -10/Mines History --------- Turn | Location | Event 17 | -11/Scrapyard | Discovered new exit (range 15) 75 | -11/Scrapyard | Entered Materials 307 | -10/Materials | Build established: Mutant 526 | -10/Materials | Discovered new exit (range 11) 620 | -10/Materials | Repaired Lgt. Treads 647 | -10/Materials | Repaired Lgt. Treads 676 | -10/Materials | Discovered new exit (range 12) 752 | -10/Materials | Discovered new exit (range 3) 764 | -10/Materials | Identified exit to Materials 1212 | -10/Materials | Discovered exit to Materials (range 16) 1514 | -10/Materials | Discovered new exit (range 16) 1763 | -10/Materials | Identified exit to Mines 1765 | -10/Materials | Entered Mines 1766 | -10/Mines | Assembled infested the area 1770 | -10/Mines | Joined a pair of Derelicts in attacking an 0b10 outpost 1794 | -10/Mines | Core integrity fell below 50% 1802 | -10/Mines | Core integrity fell below 20% 1804 | -10/Mines | Destroyed by as-97240 with Assembled Heavy Rifle Last Messages --------------- 01775_ as-36839 destroyed. 01776_ Y-45 Defender destroyed. 01777_ Machine disabled. 01779_ as-54254 destroyed. 01779_ Acquired 10 matter. 01781_ as-28032 destroyed. 01784_ as-08854 destroyed. 01784_ QL-HSR(g) destroyed. 01785_ 0O-3MX(g) destroyed. 01786_ Particle Cannon destroyed. 01786_ as-03841 destroyed. 01787_ Lgt. Treads destroyed. 01789_ Lgt. Ion Engine destroyed. 01789_ Acquired Hvy. Assault Rifle. 01791_ Lgt. Treads destroyed. 01791_ as-40453 destroyed. 01799_ Overheating: System interference. 01799_ Particle Cannon temporarily disabled. 01799_ Particle Cannon destroyed. 01803_ Hvy. Assault Rifle destroyed. Map ----- +----------------------------------------------------+ | | | | | | | | | | | | | | | | | | | | | | | | | | | | | | | | | | | | | | | ?????????????????????????????? | | ?????????????????????????????? | | ????????######???????????????? | | ?###?#### ##??????????????? | | ##" ## ##?????????????? | | # !# % #?????????????? | | #|!![@% % #?????????????? | | #|[!=;!%! #????????????? | | #""!*# % a #???????????? | | ##"%## %a!% #???????????? | | ?###?# aaaa ?????????? | | ?????## a % ???????? | | ??????# a ## ???????? | | ??????# a##?? ??????? | | ?????? ## ##???? ??????? | | ?????? ##? #????????????? | | ?????## #?? #????????????? | | ??????## ##??? #????????????? | | ???????# ##???? #????????????? | | ???????# #???????????????????? | | ???????? #???????????????????? | | ???????? ????????????????????? | | ?????????????????????????????? | | ?????????????????????????????? | | ?????????????????????????????? | | ?????????????????????????????? | | ?????????????????????????????? | | ?????????????????????????????? | | ?????????????????????????????? | | ?????????????????????????????? | | ?????????????????????????????? | +----------------------------------------------------+ Best States ------------- Heat Dissipation 39 Energy Generation 10 Energy Capacity 350 Matter Stores 300 Matter Capacity 300 Sight Range 16 Terrain Scan Density 10 Armor Coverage 150 Evasion (%) 62 Recoil Reduction 2 Item Schematics ----------------- None Robot Schematics ------------------ None Fabricated ------------ Nothing Repaired ---------- Lgt. Treads | 23% | -10/Materials Lgt. Treads | 51% | -10/Materials Alien Tech Used ----------------- None Achievements -------------- Hunted Challenges ------------ None Game ------ Seed RegenerativeChargeMantle Manual? 0 Play Time 00:22:48 Cumulative 8.0 hours Start 2025.10.12 @ 07:15:31 End 2025.10.12 @ 07:37:23 Sessions 1 Manual Loads 0 Difficulty Rogue Special Mode None Game No. 12 Rogue 12 Adventurer 0 Explorer 0 Win Type - Total 0 Types 0/0/0/0/0/0/0/0/0/0 Lore% 5 Gallery% 8 Achievement% 12 Wizard Run 0 Options --------- Layout 2 ASCII 0 Keyboard 1 Movement Numpad Keybinds 0 Fullscreen 1 Font 32/SmallcapsGlow Map View 130x44 Zoom Use 0% Tactical HUD 1 Map Filters NONE Filters NONE Steam 1 RUN: 9407b32d-a678-4add-85b8-16a589e41eb3